bitfinex-derivatives/quotes_SOLF0:USTF0_20260304
["timestamp","ask_amount","ask_price","bid_price","bid_amount"]
[1772607955953,17.80150233,85.551,85.492,18.99116578]
[1772607957256,17.80150233,85.551,85.507,10.526]
[1772607957552,17.80150233,85.551,85.492,18.99116578]
[1772607957759,17.80150233,85.551,85.505,10.526]
[1772607960351,17.80150233,85.551,85.514,10.525]
[1772607960557,17.80150233,85.569,85.515,18.99116578]
[1772607961862,17.80150233,85.59,85.534,10.522]
[1772607962261,17.80150233,85.589,85.534,10.522]
[1772607964060,17.80150233,85.584,85.529,18.99116578]
[1772607964661,17.80150233,85.582,85.524,10.524]
[1772607964860,17.80150233,85.582,85.514,29.51616578]
[1772607965465,17.80150233,85.57,85.514,10.525]
[1772607966363,8.55342384,85.594,85.514,10.525]
[1772607966364,17.80150233,85.567,85.514,10.525]
[1772607966756,17.80150233,85.567,85.504,10.526]
[1772607967358,17.80150233,85.565,85.499,18.99116578]
[1772607967958,17.80150233,85.559,85.501,18.99116578]
[1772607968559,17.80150233,85.559,85.506,10.526]
[1772607968764,17.80150233,85.559,85.506,29.51716578]
[1772607969067,17.80150233,85.559,85.507,18.99116578]
[1772607970356,17.80150233,85.559,85.509,10.525]
[1772607974263,17.80150233,85.559,85.507,18.99116578]
[1772607975363,17.80150233,85.559,85.508,18.99116578]
[1772607977368,17.80150233,85.559,85.521,10.524]
[1772607981970,17.66154541,85.572,85.529,10.523]
[1772607982269,17.66154541,85.572,85.53,18.79530653]
[1772607983266,17.66154541,85.572,85.531,10.523]
[1772607987271,17.66154541,85.572,85.521,10.524]
[1772607987863,17.66154541,85.572,85.521,29.31930653]
[1772607988464,17.66154541,85.572,85.522,18.79530653]
[1772607991879,17.66154541,85.571,85.509,18.79530653]
[1772607992375,17.66154541,85.583,85.51,18.79530653]
[1772607992572,17.66154541,85.583,85.513,18.79530653]
[1772607993470,17.66154541,85.583,85.539,10.522]
[1772607996680,17.66154541,85.594,85.542,18.79530653]
[1772607996877,17.66154541,85.609,85.542,18.79530653]
[1772607997179,17.66154541,85.609,85.567,18.79530653]
[1772607997379,17.66154541,85.624,85.567,18.79530653]
[1772607998181,17.66154541,85.624,85.514,21.05]
[1772607998182,17.66154541,85.623,85.536,14.38450707]
[1772607998372,17.66154541,85.608,85.526,18.79530653]
[1772607998575,17.66154541,85.605,85.526,18.79530653]
[1772607998775,17.66154541,85.605,85.542,18.79530653]
[1772607998971,21.80319451,85.644,85.542,18.79530653]
[1772607998972,17.66154541,85.604,85.542,18.79530653]
[1772607999782,17.66154541,85.604,85.556,18.79530653]
[1772608002479,17.66154541,85.604,85.5,28.27208014]
[1772608002480,17.66154541,85.604,85.545,18.79530653]
[1772608003779,17.66154541,85.604,85.547,18.79530653]
[1772608004685,17.66154541,85.604,85.56,10.519]
[1772608004886,17.66154541,85.604,85.559,18.79530653]
[1772608006187,17.66154541,85.604,85.561,18.79530653]
[1772608008882,17.66154541,85.604,85.56,10.519]
[1772608008883,17.66154541,85.604,85.563,17.24161342]
[1772608011990,17.66154541,85.604,85.552,17.24161342]
[1772608014892,17.66154541,85.604,85.554,17.24161342]
[1772608016296,17.66154541,85.604,85.56,17.24161342]
[1772608017194,17.66154541,85.604,85.561,10.519]
[1772608017393,17.66154541,85.604,85.562,17.24161342]
[1772608018190,17.66154541,85.604,85.563,27.76061342]
[1772608018385,17.66154541,85.604,85.564,17.24161342]
[1772608019396,10.512,85.623,85.566,17.24161342]
[1772608019397,17.26413114,85.616,85.566,17.24161342]
[1772608020287,17.26413114,85.616,85.57,17.24161342]
[1772608020487,17.26413114,85.614,85.57,17.24161342]
[1772608022101,17.26413114,85.622,85.57,17.24161342]
[1772608023200,17.26413114,85.622,85.573,17.24161342]
[1772608024100,17.26413114,85.619,85.573,17.24161342]
[1772608024295,17.26413114,85.619,85.563,10.519]
[1772608024500,17.26413114,85.619,85.564,17.24161342]
[1772608026302,17.26413114,85.619,85.566,10.518]
[1772608027209,17.26413114,85.617,85.566,10.518]
[1772608027510,17.26413114,85.616,85.566,10.518]
[1772608027709,17.26413114,85.613,85.564,17.24161342]
[1772608028401,17.26413114,85.611,85.564,17.24161342]
[1772608028708,17.26413114,85.611,85.549,17.24161342]
[1772608029303,27.77713114,85.611,85.553,10.52]
[1772608029504,17.26413114,85.609,85.554,17.24161342]
[1772608030309,17.26413114,85.609,85.558,17.24161342]
[1772608034311,8.8910429,85.61,85.561,17.24161342]
[1772608034512,17.26413114,85.621,85.561,17.24161342]
[1772608036312,17.26413114,85.621,85.572,17.24161342]
[1772608037310,17.26413114,85.621,85.574,17.24161342]
[1772608038616,17.26413114,85.621,85.563,10.519]
[1772608038813,18.1659181,85.626,85.525,17.3271216]
[1772608038814,17.93536588,85.619,85.525,17.3271216]
[1772608039013,17.93536588,85.617,85.525,17.3271216]
[1772608039217,17.93536588,85.615,85.525,17.3271216]
[1772608039413,17.93536588,85.606,85.553,10.52]
[1772608039726,10.513,85.607,85.519,21.20406011]
[1772608039727,17.93536588,85.604,85.554,17.3271216]
[1772608039912,17.93536588,85.602,85.554,17.3271216]
[1772608040115,17.99538681,85.601,85.556,18.2720647]
[1772608040310,10.512,85.617,85.556,18.2720647]
[1772608040311,17.99538681,85.599,85.556,18.2720647]
[1772608040620,17.99538681,85.612,85.556,18.2720647]
[1772608041221,17.99538681,85.61,85.556,18.2720647]
[1772608041520,17.99538681,85.608,85.556,18.2720647]
[1772608042222,17.99538681,85.608,85.567,10.518]
[1772608042417,8.91814022,85.607,85.556,18.2720647]
[1772608042721,17.99538681,85.606,85.556,18.2720647]
[1772608043322,17.99538681,85.606,85.557,18.2720647]
[1772608045319,17.99538681,85.606,85.56,18.2720647]
[1772608046126,17.99538681,85.605,85.562,10.519]
[1772608049023,17.99538681,85.605,85.565,10.518]
[1772608052324,17.99538681,85.605,85.566,18.2720647]
[1772608056231,17.99538681,85.605,85.556,10.52]
[1772608056430,17.99538681,85.604,85.557,18.2720647]
[1772608056636,17.99538681,85.603,85.557,18.2720647]
[1772608058438,17.99538681,85.602,85.557,18.2720647]
[1772608058638,17.99538681,85.601,85.557,18.2720647]
[1772608058834,17.99538681,85.6,85.557,18.2720647]
[1772608066247,17.99538681,85.6,85.561,18.2720647]
[1772608068046,17.99538681,85.6,85.565,18.59788965]
[1772608074650,17.99538681,85.6,85.555,10.52]
[1772608075154,17.99538681,85.6,85.556,18.59788965]
[1772608076756,17.99538681,85.6,85.56,18.59788965]
[1772608078254,17.99538681,85.6,85.562,18.59788965]
[1772608078856,186.23854496,86.279,85.564,18.59788965]
[1772608078857,17.83773113,85.609,85.564,18.59788965]
[1772608081154,17.83773113,85.608,85.564,18.59788965]
[1772608081357,17.83773113,85.607,85.564,18.59788965]
[1772608081569,17.83773113,85.606,85.564,18.59788965]
[1772608082768,17.83773113,85.604,85.564,18.59788965]
[1772608083163,17.83773113,85.603,85.564,18.59788965]
[1772608083468,17.83773113,85.602,85.564,18.59788965]
[1772608085968,17.83773113,85.602,85.566,29.11588965]
[1772608086174,14.20702858,85.635,85.513,21.05]
[1772608086175,17.83773113,85.629,85.567,18.59788965]
[1772608086469,17.83773113,85.627,85.567,18.59788965]
[1772608086670,17.83773113,85.625,85.567,18.59788965]
[1772608086873,8.71230281,85.626,85.522,163.711]
[1772608086874,17.83773113,85.623,85.579,18.59788965]
[1772608087064,10.88914191,85.646,85.579,18.59788965]
[1772608087374,17.83773113,85.663,85.618,18.59788965]
[1772608087569,17.83773113,85.675,85.618,18.59788965]
[1772608089270,2.03193288,85.716,85.618,18.59788965]
[1772608089271,17.83773113,85.673,85.618,18.59788965]
[1772608090273,17.83773113,85.67,85.618,18.59788965]
[1772608090463,17.83773113,85.67,85.61,10.513]
[1772608090464,17.83773113,85.67,85.601,18.59788965]
[1772608091473,17.83773113,85.667,85.613,18.59788965]
[1772608093273,17.83773113,85.665,85.613,18.59788965]
[1772608094075,17.83773113,85.665,85.614,18.59788965]
[1772608095376,17.83773113,85.665,85.617,18.59788965]
[1772608097177,17.83773113,85.665,85.621,18.59788965]
[1772608100274,18.48782226,85.678,85.623,17.27046168]
[1772608100481,18.48782226,85.69,85.623,17.27046168]
[1772608101381,18.48782226,85.69,85.635,17.27046168]
[1772608104981,18.48782226,85.688,85.622,17.27046168]
[1772608106377,18.48782226,85.669,85.622,17.27046168]
[1772608110089,18.48782226,85.687,85.636,17.27046168]
[1772608111387,18.48782226,85.687,85.638,17.27046168]
[1772608111988,18.48782226,85.687,85.64,17.27046168]
[1772608112488,18.48782226,85.687,85.643,17.27046168]
[1772608113888,10.502,85.697,85.643,17.27046168]
[1772608114184,18.48782226,85.696,85.643,17.27046168]
[1772608115688,18.48782226,85.693,85.643,17.27046168]
[1772608118491,18.48782226,85.693,85.646,17.27046168]
[1772608121894,18.48782226,85.691,85.646,17.27046168]
[1772608122096,10.503,85.692,85.646,17.27046168]
[1772608123601,18.48782226,85.691,85.646,17.27046168]
[1772608125000,28.98982226,85.701,85.65,17.27046168]
[1772608125201,18.48782226,85.7,85.65,17.27046168]
[1772608131104,18.37428165,85.711,85.652,17.43561809]
[1772608131304,14.52495876,85.737,85.652,17.43561809]
[1772608131305,18.37428165,85.732,85.652,17.43561809]
[1772608131504,18.37428165,85.731,85.652,17.43561809]
[1772608131707,18.37428165,85.73,85.652,17.43561809]
[1772608131904,18.37428165,85.729,85.652,17.43561809]
[1772608132200,18.37428165,85.729,85.671,10.505]
[1772608132405,18.37428165,85.728,85.672,17.43561809]
[1772608132904,18.37428165,85.728,85.627,21.20406011]
[1772608132905,18.37428165,85.728,85.675,17.43561809]
[1772608133104,26.91949675,85.728,85.675,17.43561809]
[1772608133302,8.5452151,85.727,85.675,17.43561809]
[1772608133506,18.37428165,85.728,85.678,17.43561809]
[1772608133701,8.5436944,85.739,85.678,17.43561809]
[1772608134203,28.87128165,85.74,85.678,17.43561809]
[1772608134907,18.37428165,85.737,85.678,17.43561809]
[1772608135900,18.37428165,85.732,85.678,17.43561809]
[1772608138899,18.37428165,85.728,85.678,17.43561809]
[1772608139207,18.37428165,85.728,85.664,17.43561809]
[1772608139509,18.37428165,85.717,85.65,17.43561809]
[1772608141300,18.37428165,85.717,85.664,17.43561809]
[1772608142205,28.87228165,85.729,85.668,17.43561809]
[1772608142407,18.37428165,85.728,85.668,17.43561809]
[1772608142908,18.37428165,85.726,85.675,17.43561809]
[1772608143713,18.37428165,85.724,85.675,17.43561809]
[1772608144011,18.37428165,85.724,85.665,17.43561809]
[1772608144414,18.37428165,85.724,85.668,17.43561809]
[1772608145108,18.37428165,85.741,85.668,17.43561809]
[1772608146212,18.37428165,85.741,85.683,10.504]
[1772608146410,18.37428165,85.741,85.684,17.43561809]
[1772608146812,18.37428165,85.741,85.686,17.43561809]
[1772608147012,18.37428165,85.751,85.686,17.43561809]
[1772608147315,18.37428165,85.751,85.697,17.43561809]
[1772608147614,319.80319451,85.798,85.697,17.43561809]
[1772608147615,18.37428165,85.778,85.697,17.43561809]
[1772608148014,18.37428165,85.776,85.72,17.43561809]
[1772608148512,18.37428165,85.776,85.731,17.43561809]
[1772608150309,18.37428165,85.795,85.734,10.498]
[1772608150611,18.37428165,85.795,85.735,17.43561809]
[1772608151903,18.37428165,85.792,85.735,17.43561809]
[1772608152513,18.37428165,85.79,85.735,17.43561809]
[1772608152912,18.37428165,85.788,85.735,17.43561809]
[1772608157913,18.37428165,85.785,85.735,17.43561809]
[1772608159218,198.94210742,85.796,85.735,17.43561809]
[1772608159219,18.26770801,85.783,85.735,17.43561809]
[1772608160314,17.64285355,85.781,85.735,17.43561809]
[1772608160712,17.64285355,85.779,85.735,17.43561809]
[1772608160921,17.64285355,85.779,85.663,18.29814938]
[1772608162117,17.64285355,85.759,85.703,18.29814938]
[1772608162722,17.64285355,85.756,85.703,18.29814938]
[1772608163623,17.64285355,85.753,85.703,18.29814938]
[1772608164720,17.64285355,85.75,85.682,18.29814938]
[1772608166428,17.64285355,85.736,85.682,18.29814938]
[1772608166720,17.64285355,85.736,85.683,18.29814938]
[1772608167928,17.64285355,85.733,85.683,18.29814938]
[1772608173233,2.03006598,85.787,85.683,18.29814938]
[1772608173234,17.64285355,85.731,85.683,18.29814938]
[1772608173434,17.64285355,85.731,85.67,18.29814938]
[1772608174237,10.5,85.718,85.67,18.29814938]
[1772608174430,17.64285355,85.717,85.67,18.29814938]
[1772608174928,17.64285355,85.715,85.67,18.29814938]
[1772608184938,17.64285355,85.76,85.67,18.29814938]
[1772608185138,163.097,85.845,85.609,11.618692]
[1772608185139,10.88914191,85.816,85.689,18.29814938]
[1772608185438,10.88914191,85.845,85.692,18.29814938]
[1772608185737,10.88914191,85.846,85.693,18.29814938]
[1772608186031,10.488,85.815,85.738,18.29814938]
[1772608186334,10.88914191,85.846,85.689,18.29814938]
[1772608186335,10.88914191,85.833,85.689,18.29814938]
[1772608186534,10.88914191,85.833,85.713,18.29814938]
[1772608186739,11.69130753,85.843,85.713,18.29814938]
[1772608186740,163.135,85.825,85.713,18.29814938]
[1772608187042,10.88914191,85.83,85.713,18.29814938]
[1772608187341,6.95009479,85.829,85.713,18.29814938]
[1772608188240,7.00658157,85.784,85.715,18.40920084]
[1772608189339,7.01190602,85.781,85.717,18.40920084]
[1772608190437,7.01190602,85.781,85.661,21.20406011]
[1772608190438,17.57120134,85.86,85.72,14.30717323]
[1772608190733,10.483,85.859,85.785,18.40920084]
[1772608190937,17.58501906,85.858,85.785,18.40920084]
[1772608191340,17.58460229,85.844,85.785,18.40920084]
[1772608191541,17.58460229,85.844,85.762,18.40920084]
[1772608191842,16.34888788,85.829,85.762,18.40920084]
[1772608195639,16.34888788,85.829,85.732,287.79976274]
[1772608195640,16.36465723,85.877,85.805,18.40920084]
[1772608196545,16.22353438,85.865,85.805,18.40920084]
[1772608197641,16.2355735,85.863,85.79,18.40920084]
[1772608197848,16.2355735,85.863,85.773,18.40920084]
[1772608198545,26.98084718,85.834,85.773,18.40920084]
[1772608199746,26.99252663,85.832,85.773,18.40920084]
[1772608199948,16.50652663,85.832,85.773,18.40920084]
[1772608200346,10.486,85.829,85.773,18.40920084]
[1772608200546,17.12375949,85.828,85.749,18.40920084]
[1772608201244,17.13535978,85.814,85.749,18.40920084]
[1772608201449,17.13535978,85.814,85.733,18.40920084]
[1772608201746,27.64051857,85.775,85.701,18.40920084]
[1772608202049,17.18813885,85.774,85.701,18.40920084]
[1772608202948,20.969,85.844,85.634,21.02]
[1772608202949,17.18813885,85.77,85.704,18.40920084]
[1772608203544,10.495,85.758,85.704,18.40920084]
[1772608204451,17.06615414,85.754,85.687,18.40920084]
[1772608205854,17.08938498,85.752,85.687,18.40920084]
[1772608206845,17.10058743,85.75,85.687,18.40920084]
[1772608207548,17.10058743,85.75,85.63,186.48]
[1772608207549,10.497,85.744,85.663,10.506]
[1772608207856,17.10058743,85.743,85.664,18.40920084]
[1772608209253,17.12397007,85.738,85.667,18.40920084]
[1772608210049,16.9660677,85.736,85.667,18.40920084]
[1772608210258,16.9660677,85.736,85.65,18.40920084]
[1772608210651,199.22465937,85.788,85.63,186.48]
[1772608210652,16.9660677,85.72,85.652,18.40920084]
[1772608211750,16.97663186,85.718,85.656,18.40920084]
[1772608212848,17.01036611,85.716,85.656,18.40920084]
[1772608213155,17.01036611,85.716,85.631,18.40920084]
[1772608214252,17.04025931,85.709,85.632,18.40920084]
[1772608215156,17.04025931,85.709,85.641,18.40920084]
[1772608216654,17.24520516,85.707,85.641,18.40920084]
[1772608216852,17.24520516,85.707,85.571,286.96978362]
[1772608216853,17.24520516,85.707,85.572,18.40920084]
[1772608217252,20.993,85.749,85.612,18.40920084]
[1772608217253,17.25511171,85.68,85.612,18.40920084]
[1772608217861,17.25511171,85.68,85.616,18.40920084]
[1772608218754,20.993,85.749,85.616,18.40920084]
[1772608218755,16.84104705,85.677,85.616,18.40920084]
[1772608219355,10.506,85.672,85.616,18.40920084]
[1772608219549,16.84104705,85.677,85.616,18.40920084]
[1772608220765,16.86751332,85.694,85.629,17.04285081]
[1772608221662,16.86751332,85.694,85.643,17.04285081]
[1772608222663,16.86751332,85.694,85.645,10.509]
[1772608223455,16.86751332,85.694,85.643,17.04285081]
[1772608224865,4.67144111,85.69,85.643,17.04285081]
[1772608226155,4.67144111,85.69,85.62,4.67144111]
[1772608226156,4.67144111,85.69,85.645,17.04285081]
[1772608226354,16.86751332,85.694,85.645,17.04285081]
[1772608227264,16.86751332,85.694,85.646,10.509]
[1772608228664,16.86751332,85.694,85.645,17.04285081]
[1772608229360,16.86751332,85.694,85.646,17.04285081]
[1772608230265,16.86751332,85.694,85.649,10.508]
[1772608230566,16.93747185,85.707,85.65,17.04285081]
[1772608232368,10.502,85.704,85.65,17.04285081]
[1772608232669,17.08910901,85.703,85.65,17.04285081]
[1772608232859,17.08910901,85.701,85.65,17.04285081]
[1772608233967,17.07648516,85.686,85.628,17.04285081]
[1772608235473,4.67144111,85.69,85.628,17.04285081]
[1772608235474,17.08416724,85.684,85.628,17.04285081]
[1772608235670,17.08416724,85.684,85.63,17.04285081]
[1772608237574,17.08416724,85.684,85.634,10.51]
[1772608237875,17.08416724,85.684,85.63,17.04285081]
[1772608237876,17.08416724,85.684,85.635,17.04285081]
[1772608238372,4.67144111,85.69,85.635,17.04285081]
[1772608239080,21.82922469,85.69,85.635,17.04285081]
[1772608239273,21.82922469,85.69,85.638,17.04285081]
[1772608240077,21.82922469,85.69,85.641,17.04285081]
[1772608242383,21.82922469,85.69,85.643,10.509]
[1772608242576,21.82922469,85.69,85.643,27.55185081]
[1772608242782,21.82922469,85.69,85.644,17.04285081]
[1772608243078,10.502,85.703,85.62,4.67144111]
[1772608243079,17.05113622,85.703,85.648,17.04285081]
[1772608243482,17.05113622,85.718,85.666,17.04285081]
[1772608244684,17.05113622,85.718,85.64,4.67144111]
[1772608244685,17.05113622,85.718,85.673,27.54785081]
[1772608246594,17.42104075,85.729,85.676,17.04285081]
[1772608247487,17.42104075,85.729,85.641,17.04285081]
[1772608249286,10.5,85.718,85.661,17.19974719]
[1772608250387,17.02169737,85.709,85.647,17.19974719]
[1772608250785,17.02169737,85.703,85.65,17.19974719]
[1772608252287,17.02169737,85.703,85.653,17.19974719]
[1772608253187,17.02169737,85.703,85.654,10.508]
[1772608253394,17.02169737,85.703,85.655,17.19974719]
[1772608254489,4.67144111,85.71,85.655,17.19974719]
[1772608254694,4.67144111,85.71,85.665,17.19974719]
[1772608256194,21.69313848,85.71,85.665,17.19974719]
[1772608257593,21.69313848,85.71,85.666,10.506]
[1772608257790,17.02169737,85.709,85.665,17.19974719]
[1772608262495,1.5688174,85.71,85.668,17.19974719]
[1772608262702,17.02169737,85.726,85.681,17.19974719]
[1772608263000,1.5688174,85.72,85.681,17.19974719]
[1772608266404,1.5688174,85.73,85.684,17.19974719]
[1772608266803,1.5688174,85.73,85.658,14.30717323]
[1772608266804,17.02169737,85.739,85.691,17.19974719]
[1772608267208,1.5688174,85.74,85.701,17.19974719]
[1772608267705,1.5688174,85.75,85.701,17.19974719]
[1772608268105,1.5688174,85.73,85.687,17.19974719]
[1772608268307,1.5688174,85.72,85.687,17.19974719]
[1772608270504,10.498,85.73,85.687,17.19974719]
[1772608271412,17.02169737,85.739,85.687,17.19974719]
[1772608273211,17.02169737,85.739,85.689,17.19974719]
[1772608277824,17.02169737,85.739,85.691,17.19974719]
[1772608279218,17.02169737,85.739,85.693,16.5857316]
[1772608279527,17.02169737,85.739,85.66,16.5857316]
[1772608279818,16.99648556,85.729,85.66,16.5857316]
[1772608281323,17.0854641,85.727,85.663,17.63058831]
[1772608281718,17.0854641,85.727,85.675,17.63058831]
[1772608283226,10.498,85.731,85.677,17.63058831]
[1772608283425,10.499,85.725,85.677,17.63058831]
[1772608283626,17.32904205,85.73,85.677,17.63058831]
[1772608284525,221.02785388,85.788,85.682,17.63058831]
[1772608284526,17.31254826,85.745,85.682,17.63058831]
[1772608285328,10.495,85.754,85.698,17.63058831]
[1772608287828,17.16398931,85.757,85.7,17.63058831]
[1772608289430,17.16398931,85.757,85.68,4.66670454]
[1772608289431,17.16398931,85.757,85.702,17.63058831]
[1772608290524,17.16398931,85.757,85.705,10.501]
[1772608290725,17.16398931,85.757,85.706,17.63058831]
[1772608292524,1.56752083,85.75,85.706,17.63058831]
[1772608293133,18.65848622,85.75,85.706,17.63058831]
[1772608293434,1.56752083,85.74,85.706,17.63058831]
[1772608304339,14.52495876,85.789,85.678,14.30717323]
[1772608304340,1.56752083,85.72,85.678,17.63058831]
[1772608305842,18.70962786,85.73,85.681,17.63058831]
[1772608306042,17.14210703,85.73,85.681,17.63058831]
[1772608307342,17.14210703,85.73,85.682,17.63058831]
[1772608309744,17.14210703,85.73,85.69,1.56752083]
[1772608309942,17.14210703,85.73,85.691,17.16741237]
[1772608311242,18.70962786,85.73,85.691,17.16741237]
[1772608312244,17.14210703,85.73,85.691,17.16741237]
[1772608312449,1.56752083,85.74,85.692,10.503]
[1772608312644,16.44609299,85.741,85.692,10.503]
[1772608312645,16.44609299,85.741,85.7,1.56752083]
[1772608312842,16.44609299,85.754,85.711,17.16741237]
[1772608314653,17.97474705,85.75,85.711,17.16741237]
[1772608320852,16.55867114,85.739,85.699,17.16741237]
[1772608321053,16.55867114,85.729,85.683,17.16741237]
[1772608322659,1.56752083,85.74,85.691,17.16741237]
[1772608322854,16.54850622,85.747,85.701,17.16741237]
[1772608323160,16.54850622,85.747,85.71,18.7349332]
[1772608324359,10.496,85.746,85.71,17.16741237]
[1772608325059,16.51317278,85.743,85.7,18.7349332]
[1772608327859,17.90523581,85.74,85.7,17.16741237]
[1772608328960,16.33771498,85.74,85.7,17.16741237]
[1772608329365,16.33771498,85.74,85.7,18.7349332]
[1772608330662,16.33771498,85.74,85.7,17.16741237]
[1772608331864,10.497,85.738,85.7,17.16741237]
[1772608333164,16.33771498,85.74,85.7,17.16741237]
[1772608335869,16.66753149,85.738,85.7,17.16741237]
[1772608336367,16.66753149,85.738,85.689,17.16741237]
[1772608337169,16.66753149,85.738,85.691,17.16741237]
[1772608337370,16.65151744,85.736,85.691,17.16741237]
[1772608341369,16.54489831,85.747,85.701,16.5906312]
[1772608341764,16.54489831,85.745,85.701,16.5906312]
[1772608342567,16.53702946,85.733,85.69,1.56784562]
[1772608342771,16.53702946,85.733,85.69,18.15847682]
[1772608345376,16.58608208,85.732,85.69,18.15847682]
[1772608349576,16.7027097,85.73,85.68,18.15847682]
[1772608349781,18.27055532,85.73,85.67,1.56784562]
[1772608349978,18.27055532,85.73,85.671,16.5906312]
[1772608350178,10.499,85.726,85.671,16.5906312]
[1772608350478,16.69537816,85.725,85.671,16.5906312]
[1772608350679,16.69537816,85.725,85.68,1.56784562]
[1772608352375,16.70197919,85.72,85.68,1.56784562]
[1772608357493,16.70197919,85.72,85.68,18.15847682]
[1772608364005,16.70197919,85.72,85.661,16.5906312]
[1772608364006,16.38534676,85.716,85.661,16.5906312]
[1772608364198,16.38534676,85.716,85.67,1.56784562]
[1772608364599,16.38534676,85.716,85.67,18.15847682]
[1772608365206,10.501,85.711,85.67,18.15847682]
[1772608365405,16.55824057,85.71,85.67,18.15847682]
[1772608365607,16.55824057,85.71,85.68,1.56784562]
[1772608366404,16.55824057,85.71,85.67,18.15847682]
[1772608367201,16.45300876,85.707,85.67,16.5906312]
[1772608367404,16.45300876,85.707,85.67,18.15847682]
[1772608367912,16.3819116,85.706,85.67,18.15847682]
[1772608369307,16.3819116,85.706,85.67,1.56784562]
[1772608369508,16.24467157,85.702,85.66,1.56784562]
[1772608370610,10.502,85.7,85.66,1.56784562]
[1772608370807,10.502,85.7,85.65,1.56784562]
[1772608370808,16.17600663,85.699,85.65,1.56784562]
[1772608371201,10.503,85.696,85.65,18.20046697]
[1772608371405,16.10085241,85.695,85.65,18.20046697]
[1772608371810,16.10085241,85.692,85.65,18.20046697]
[1772608373107,16.10085241,85.692,85.65,16.63262135]
[1772608373312,16.03173339,85.687,85.65,16.63262135]
[1772608375012,15.96465581,85.704,85.661,16.63262135]
[1772608376313,15.90037178,85.702,85.661,16.63262135]
[1772608376511,15.90037178,85.699,85.661,16.63262135]
[1772608381511,10.502,85.698,85.661,16.63262135]
[1772608381712,15.47370395,85.697,85.661,16.63262135]
[1772608381915,15.41405719,85.689,85.64,1.56784562]
[1772608382210,15.41405719,85.689,85.64,18.20046697]
[1772608382406,15.41405719,85.679,85.64,16.63262135]
[1772608383008,10.505,85.676,85.64,16.63262135]
[1772608383217,15.3522208,85.675,85.64,16.63262135]
[1772608384518,15.3522208,85.675,85.572,28.32354919]
[1772608384519,15.29385852,85.669,85.625,16.63262135]
[1772608385617,16.74474737,85.68,85.631,16.63262135]
[1772608386917,15.17690175,85.68,85.64,18.20046697]
[1772608387119,16.74474737,85.68,85.64,16.63262135]
[1772608387312,15.15577303,85.679,85.64,16.63262135]
[1772608388318,10.505,85.678,85.64,16.63262135]
[1772608388521,15.10000801,85.677,85.64,16.63262135]
[1772608389021,15.07282324,85.669,85.631,16.63262135]
[1772608389412,15.07282324,85.667,85.631,16.63262135]
[1772608393422,1.56784562,85.66,85.631,16.63262135]
[1772608393622,14.81061048,85.659,85.613,16.63262135]
[1772608394621,14.81061048,85.659,85.621,16.63262135]
[1772608395123,14.90175863,85.692,85.651,16.63262135]
[1772608395521,14.90175863,85.692,85.66,1.56784562]
[1772608398424,10.502,85.701,85.66,16.87137647]
[1772608398631,14.72023157,85.7,85.66,16.87137647]
[1772608401528,14.52066417,85.712,85.671,15.65117685]
[1772608401832,14.52066417,85.729,85.68,17.21902247]
[1772608402432,14.52066417,85.729,85.69,1.56812091]
[1772608402637,14.52066417,85.729,85.69,17.21929776]
[1772608403434,25.01866417,85.729,85.69,17.21929776]
[1772608403635,25.01866417,85.729,85.69,15.65117685]
[1772608403830,10.5,85.714,85.676,15.65117685]
[1772608404143,14.05675775,85.713,85.676,15.65117685]
[1772608405034,14.01380883,85.709,85.661,15.65117685]
[1772608405236,1.56812091,85.71,85.661,15.65117685]
[1772608405237,14.01380883,85.707,85.661,15.65117685]
[1772608406336,10.501,85.705,85.661,15.65117685]
[1772608411839,14.01380883,85.707,85.661,15.65117685]
[1772608412842,14.01380883,85.707,85.67,1.56812091]
[1772608414045,13.58291605,85.706,85.661,15.65117685]
[1772608416538,13.58291605,85.706,85.65,1.56812091]
[1772608416740,13.58291605,85.706,85.65,17.21929776]
[1772608416942,13.58291605,85.706,85.653,10.508]
[1772608417140,13.58291605,85.706,85.661,15.65117685]
[1772608417343,13.58291605,85.706,85.662,15.65117685]
[1772608417545,13.58291605,85.706,85.671,15.65117685]
[1772608423356,10.501,85.705,85.671,15.65117685]
[1772608425257,23.51294659,85.705,85.671,15.65117685]
[1772608427557,23.41706805,85.715,85.671,15.65117685]
[1772608432161,12.57618507,85.714,85.671,15.65117685]
[1772608432957,1.56812091,85.71,85.671,15.65117685]
[1772608433161,12.57607547,85.709,85.671,15.65117685]
[1772608435959,10.501,85.708,85.671,15.65117685]
[1772608436363,23.0745316,85.708,85.671,15.65117685]
[1772608437061,12.50854058,85.719,85.671,15.65117685]
[1772608438157,12.4672551,85.718,85.671,15.65117685]
[1772608439367,10.501,85.711,85.671,15.65117685]
[1772608440164,12.4672551,85.718,85.671,15.65117685]
[1772608441060,10.5,85.714,85.671,15.65117685]
[1772608441666,11.58394842,85.703,85.652,14.32691459]
[1772608441868,11.58394842,85.703,85.612,283.99986579]
[1772608441869,11.58394842,85.703,85.661,14.83824681]